fUST/lending_fUST_20260415
["ID","MTS","AMOUNT","RATE_DAILY","PERIOD"]
[420519890,1776222640695,-1346.07,0.00010958,2]
[420519891,1776222640708,-958.71,0.00010958,2]
[420519892,1776222640734,-621.8138748,0.00010958,2]
[420519894,1776222640743,-505.62069449,0.00010958,2]
[420519895,1776222640764,-509.60492025,0.00010958,2]
[420519896,1776222640786,-153.60858736,0.00010958,2]
[420519897,1776222640809,-598.84495814,0.00010958,2]
[420519898,1776222640831,-1607.34,0.00010958,2]
[420519899,1776222640843,-197.73428018,0.00010958,2]
[420519900,1776222640875,-761.28,0.00010958,2]
[420519901,1776222640885,-506.39254823,0.00010958,2]
[420519902,1776222640918,-512.99264805,0.00010958,2]
[420519903,1776222640928,-500.0,0.00010958,2]
[420519904,1776222640955,-500.0,0.00010958,2]
[420519905,1776222640972,-510.14473701,0.00010958,2]
[420519906,1776222640987,-507.99241502,0.00010958,2]
[420519907,1776222641009,-510.10839952,0.00010958,2]
[420519908,1776222641024,-510.16608344,0.00010958,2]
[420519909,1776222641043,-3310.26,0.00010958,2]
[420519910,1776222641067,-507.34250813,0.00010958,2]
[420519911,1776222641087,-510.85638,0.00010958,2]
[420519912,1776222641107,-507.45916533,0.00010958,2]
[420519913,1776222641123,-235.007687,0.00010958,2]
[420519914,1776222641154,-500.0,0.00010958,2]
[420519915,1776222641167,-353.34922933,0.00010958,2]
[420519916,1776222641197,-521.09860262,0.00010958,2]
[420519917,1776222641210,-500.0,0.00010958,2]
[420519918,1776222641238,-500.0,0.00010958,2]
[420519919,1776222641250,-151.0,0.00010958,2]
[420519920,1776222641281,-151.759494,0.00010958,2]
[420519921,1776222641290,-220.71177501,0.00010958,2]
[420519922,1776222641322,-2624.59,0.00010958,2]
[420519923,1776222641333,-2030.75,0.00010958,2]
[420519924,1776222641348,-515.90829694,0.00010958,2]
[420519925,1776222641361,-284.06248462,0.00010958,2]
[420519934,1776222643592,-285.12184898,9.999e-05,2]
[420519935,1776222643602,-1114.55437656,0.000107,2]
[420519936,1776222643613,-215.93751538,0.00010958,2]
[420519937,1776222643625,-607.11,0.00010958,2]
[420519938,1776222643635,-500.0,0.00010958,2]
[420519939,1776222643645,-556.74,0.00010958,2]
[420519940,1776222643659,-3989.27,0.00010958,2]
[420519941,1776222643673,-507.49929262,0.00010958,2]
[420519942,1776222643684,-513.14011058,0.00010958,2]
[420519943,1776222643695,-2330.51,0.00010958,2]
[420519944,1776222643712,-500.0,0.00010958,2]
[420519945,1776222643723,-500.0,0.00010958,2]
[420519946,1776222643741,-500.0,0.00010958,2]
[420519947,1776222643752,-511.39837737,0.00010958,2]
[420519948,1776222643762,-672.79,0.00010958,2]
[420519949,1776222643784,-500.0,0.00010958,2]
[420519950,1776222643794,-500.0,0.00010958,2]
[420519951,1776222643807,-500.0,0.00010958,2]
[420519952,1776222643822,-3030.447526,0.00010958,2]
[420519953,1776222643834,-3061.69,0.00010958,2]
[420519954,1776222643851,-500.0,0.00010958,2]
[420519955,1776222643867,-591.61,0.00010958,2]
[420519956,1776222643880,-500.0,0.00010958,2]
[420519957,1776222643892,-740.55,0.00010958,2]
[420519958,1776222643904,-2582.03,0.00010958,2]
[420519959,1776222643921,-225.36070956,0.00010958,2]
[420519960,1776222643931,-547.98118782,0.00010958,2]
[420519962,1776222643942,-500.0,0.00010958,2]
[420519964,1776222643960,-500.0,0.00010958,2]
[420519966,1776222643970,-2485.29,0.00010958,2]
[420519968,1776222643981,-404.63564864,0.00010958,2]
[420519973,1776222646734,-500.0,9.999e-05,2]
[420519974,1776222646750,-101.30950128,0.00010958,2]
[420519975,1776222646760,-500.0,0.00010958,2]
[420519976,1776222646771,-500.0,0.00010958,2]
[420519977,1776222646784,-500.0,0.00010958,2]
[420519978,1776222646812,-2750.31,0.00010958,2]
[420519979,1776222646825,-540.7839658,0.00010958,2]
[420519980,1776222646849,-329.20588003,0.00010958,2]
[420519981,1776222646864,-168.76326541,0.00010958,2]
[420519982,1776222646876,-500.0,0.00010958,2]
[420519983,1776222646902,-2080.92,0.00010958,2]
[420519984,1776222646919,-500.0,0.00010958,2]
[420519985,1776222646948,-332.0581759,0.00010958,2]
[420519986,1776222646966,-508.06769617,0.00010958,2]
[420519987,1776222646993,-500.0,0.00010958,2]
[420519988,1776222647007,-506.42573657,0.00010958,2]
[420519989,1776222647022,-2086.37,0.00010958,2]
[420519990,1776222647037,-510.45810963,0.00010958,2]
[420519991,1776222647052,-1375.9214526,0.00010958,2]
[420519992,1776222647094,-500.0,9.999e-05,2]
[420519993,1776222647108,-5065.8185474,0.00010958,2]
[420519994,1776222647135,-500.0,0.00010958,2]
[420519995,1776222647150,-500.0,0.00010958,2]
[420519996,1776222647170,-770.89,0.00010958,2]
[420519997,1776222647183,-2066.8,0.00010958,2]
[420519998,1776222647197,-22584.86,0.00010958,2]
[420519999,1776222647218,-500.0,0.00010958,2]
[420520000,1776222647237,-4409.56,0.00010958,2]
[420520001,1776222647246,-3138.97,0.00010958,2]
[420520002,1776222647263,-504.2784345,0.00010958,2]
[420520003,1776222647275,-4906.94,0.00010958,2]
[420520004,1776222647284,-3120.14,0.00010958,2]
[420520005,1776222647294,-516.0275386,0.00010958,2]
[420520006,1776222647315,-535.05,0.00010958,2]
[420520007,1776222647325,-500.0,0.00010958,2]
[420520008,1776222647334,-3648.0845612,0.00010958,2]
[420520009,1776222647355,-2068.6654388,0.00010958,2]
[420520010,1776222647365,-1338.28,0.00010958,2]
[420520011,1776222647374,-158.32723883,0.00010958,2]
[420520012,1776222647384,-3242.82,0.00010958,2]
[420520013,1776222647401,-1485.06,0.00010958,2]
[420520014,1776222647411,-209.36440486,0.00010958,2]
[420520015,1776222647420,-269.94125317,0.00010958,2]
[420520016,1776222682454,1000.0,0.00027397,120]
[420520017,1776222734639,1006.0,0.00027397,120]
[420520019,1776222829862,191210.70257124,0.000273,120]
[420520022,1776223184416,161.0,0.000273,120]
[420520027,1776223537086,3190.75113323,0.00027397,120]
[420520038,1776223751725,150.04,0.00027397,120]
[420520051,1776223832727,-887.9627021,7.845e-05,10]
[420520052,1776223832754,-4747.48659677,7.924e-05,10]
[420520053,1776223832815,-252.51340323,7.924e-05,10]
[420520054,1776223832837,-5000.0,8.004e-05,10]
[420520055,1776223832851,-194.05160629,8.126e-05,2]
[420520056,1776223832864,-300.0,8.166e-05,2]
[420520057,1776223832882,-300.0,8.166e-05,2]
[420520058,1776223832893,-300.0,8.166e-05,2]
[420520059,1776223832907,-300.0,8.166e-05,2]
[420520060,1776223832929,-1200.0,8.166e-05,2]
[420520061,1776223832939,-420.0,8.983e-05,2]
[420520062,1776223832964,-288.0,8.983e-05,2]
[420520064,1776223832979,-1680.0,8.983e-05,2]
[420520065,1776223832992,-500.0,9.373e-05,2]
[420520066,1776223833005,-410.50815246,9.373e-05,2]
[420520067,1776223833023,-500.0,9.373e-05,2]
[420520068,1776223833036,-500.0,9.373e-05,2]
[420520070,1776223833049,-163.58578956,9.373e-05,2]
[420520071,1776223833068,-502.1457701,9.373e-05,2]
[420520072,1776223833082,-500.0,9.387e-05,2]
[420520073,1776223833091,-500.0,9.387e-05,2]
[420520074,1776223833109,-500.0,9.387e-05,2]
[420520075,1776223833122,-500.0,9.387e-05,2]
[420520076,1776223833133,-500.0,9.387e-05,2]
[420520077,1776223833152,-500.0,9.387e-05,2]
[420520078,1776223833165,-500.0,9.387e-05,2]
[420520079,1776223833175,-420.50878678,9.387e-05,2]
[420520080,1776223833184,-500.0,9.387e-05,2]
[420520082,1776223833195,-293.73308638,9.387e-05,2]
[420520084,1776223833209,-500.0,9.387e-05,2]
[420520086,1776223833220,-500.0,9.387e-05,2]
[420520088,1776223833230,-500.0,9.387e-05,2]
[420520090,1776223833246,-500.0,9.387e-05,2]
[420520092,1776223833259,-500.0,9.387e-05,2]
[420520093,1776223833270,-500.0,9.387e-05,2]
[420520095,1776223833283,-500.0,9.387e-05,2]
[420520097,1776223833303,-500.0,9.387e-05,2]
[420520099,1776223833315,-270.14043517,9.387e-05,2]
[420520101,1776223833326,-500.0,9.387e-05,2]
[420520103,1776223833343,-500.0,9.387e-05,2]
[420520106,1776223833358,-500.0,9.387e-05,2]
[420520107,1776223833370,-500.0,9.387e-05,2]
[420520109,1776223833391,-500.0,9.387e-05,2]
[420520111,1776223833408,-500.0,9.387e-05,2]
[420520113,1776223833422,-500.0,9.387e-05,2]
[420520116,1776223833459,-267.94842637,9.388e-05,2]
[420520125,1776223833657,-500.0,9.388e-05,2]
[420520127,1776223833673,-500.0,9.388e-05,2]
[420520129,1776223833689,-500.0,9.388e-05,2]
[420520131,1776223833705,-465.76637881,9.388e-05,2]
[420520133,1776223833725,-500.0,9.388e-05,2]
[420520135,1776223833736,-500.0,9.388e-05,2]
[420520138,1776223833754,-500.0,9.388e-05,2]
[420520140,1776223833771,-500.0,9.388e-05,2]
[420520142,1776223833782,-500.0,9.388e-05,2]
[420520144,1776223833798,-586.78821722,9.388e-05,2]
[420520146,1776223833808,-500.0,9.388e-05,2]
[420520148,1776223833820,-500.0,9.388e-05,2]
[420520150,1776223833830,-500.0,9.388e-05,2]
[420520152,1776223833842,-500.0,9.388e-05,2]
[420520154,1776223833852,-500.0,9.388e-05,2]
[420520156,1776223833864,-500.0,9.388e-05,2]
[420520158,1776223833873,-500.0,9.388e-05,2]
[420520160,1776223833888,-500.0,9.388e-05,2]
[420520162,1776223833898,-200.0,9.388e-05,2]
[420520163,1776223833909,-4712.4645329,9.389e-05,2]
[420520167,1776223833936,-2013.05918132,9.389e-05,2]
[420520170,1776223833949,-2750.0,9.389e-05,2]
[420520200,1776223839187,-32818.26151636,9.389e-05,2]
[420520208,1776223841402,-6647.22303878,9.389e-05,2]
[420520217,1776223844025,-34024.39938984,9.389e-05,2]
[420520218,1776223844074,-769.00689164,9.4e-05,2]
[420520219,1776223844108,-1931.63036276,9.4e-05,2]
[420520220,1776223844143,-1551.94267427,9.4e-05,2]
[420520221,1776223844197,-178.87486154,9.4e-05,2]
[420520222,1776223844235,-2012.70170943,9.4e-05,2]
[420520223,1776223844293,-1240.52675449,9.4e-05,2]
[420520224,1776223844331,-16.92667454,9.4e-05,2]
[420520225,1776223844372,-1290.04820015,9.4e-05,2]
[420520226,1776223844467,-1625.9843161,9.4e-05,2]
[420520232,1776223847039,-515.40756706,9.4e-05,2]
[420520233,1776223847057,-2841.38909417,9.4e-05,2]
[420520234,1776223847072,-3117.16622827,9.4e-05,2]
[420520235,1776223847084,-3144.87792597,9.4e-05,2]
[420520236,1776223847098,-160.0,9.587e-05,2]
[420520237,1776223847109,-153.730668,9.589e-05,2]
[420520238,1776223847121,-587.0,9.881e-05,2]
[420520239,1776223847135,-2351.0,9.881e-05,2]
[420520240,1776223847146,-1000.0,9.921e-05,2]
[420520241,1776223847158,-1000.0,9.921e-05,2]
[420520242,1776223847170,-379.02124748,9.921e-05,2]
[420520243,1776223847184,-601.7398205,9.921e-05,2]
[420520244,1776223847258,-19.23893202,9.921e-05,2]
[420520245,1776223847273,-720.24952503,0.0001,2]
[420520246,1776223847285,-228.98089543,0.00010126,2]
[420520247,1776223847299,-300.0,0.00010197,2]
[420520248,1776223847329,-154.53064752,0.00010197,2]
[420520265,1776224913433,10000.0,0.00027397,120]
[420520267,1776225031968,-1768.748,7.961e-05,10]
[420520268,1776225031986,-460.65045847,7.961e-05,10]
[420520269,1776225031999,-597.0,7.961e-05,10]
[420520270,1776225032025,-2173.60154153,7.961e-05,10]
[420520271,1776225032036,-533.0,8.041e-05,2]
[420520272,1776225032045,-202.99095626,8.121e-05,2]
[420520273,1776225032054,-300.0,8.201e-05,2]
[420520274,1776225032066,-300.0,8.201e-05,2]
[420520275,1776225032077,-300.0,8.201e-05,2]
[420520276,1776225032087,-300.0,8.201e-05,2]
[420520277,1776225032096,-300.0,8.201e-05,2]
[420520278,1776225032108,-300.0,8.201e-05,2]
[420520279,1776225032118,-300.0,8.201e-05,2]
[420520280,1776225032128,-300.0,8.201e-05,2]
[420520281,1776225032138,-300.0,8.201e-05,2]
[420520282,1776225032149,-300.0,8.201e-05,2]
[420520283,1776225032159,-300.0,8.201e-05,2]
[420520284,1776225032169,-300.0,8.201e-05,2]
[420520285,1776225032179,-300.0,8.201e-05,2]
[420520286,1776225032189,-300.0,8.201e-05,2]
[420520287,1776225032202,-300.0,8.201e-05,2]
[420520288,1776225032212,-1236.9037171,8.288e-05,2]
[420520289,1776225032222,-600.0,8.364e-05,2]
[420520290,1776225032233,-157.567327,9.06e-05,2]
[420520291,1776225032244,-1200.0,9.088e-05,2]
[420520292,1776225032253,-2025.0761478,9.089e-05,2]
[420520293,1776225032263,-300.0,9.16e-05,2]
[420520294,1776225032274,-300.0,9.16e-05,2]
[420520295,1776225032284,-300.0,9.16e-05,2]
[420520296,1776225032294,-300.0,9.16e-05,2]
[420520297,1776225032305,-300.0,9.161e-05,2]
[420520298,1776225032315,-1459.04122094,9.162e-05,2]
[420520299,1776225032325,-500.0,9.163e-05,2]
[420520300,1776225032335,-397.31907061,9.163e-05,2]
[420520301,1776225032349,-102.68092939,9.163e-05,2]
[420520302,1776225032360,-585.57115946,9.188e-05,2]
[420520303,1776225032372,-500.0,9.188e-05,2]
[420520304,1776225032383,-199.30367626,9.188e-05,2]
[420520305,1776225032393,-187.56389846,9.188e-05,2]
[420520306,1776225032403,-500.0,9.188e-05,2]
[420520307,1776225032416,-500.0,9.188e-05,2]
[420520308,1776225032426,-500.0,9.188e-05,2]
[420520309,1776225032439,-57.13157363,9.188e-05,2]
[420520310,1776225032461,-355.5,9.188e-05,2]
[420520354,1776225038328,-87.36842637,9.188e-05,2]
[420520355,1776225038346,-500.0,9.188e-05,2]
[420520356,1776225038377,-500.0,9.188e-05,2]
[420520357,1776225038415,-176.78821723,9.188e-05,2]
[420520358,1776225038481,-500.0,9.188e-05,2]
[420520359,1776225038529,-500.0,9.188e-05,2]
[420520360,1776225038559,-500.0,9.188e-05,2]
[420520361,1776225038580,-500.0,9.188e-05,2]
[420520362,1776225038618,-500.0,9.188e-05,2]
[420520363,1776225038642,-500.0,9.188e-05,2]
[420520364,1776225038673,-323.75175206,9.188e-05,2]
[420520365,1776225038703,-500.0,9.188e-05,2]
[420520366,1776225038714,-177421.08194506,9.189e-05,2]
[420520367,1776225038727,-23620.92688428,9.189e-05,2]
[420520368,1776225038743,-2119.65077458,9.189e-05,2]
[420520376,1776225040667,-889.42,9.089e-05,2]
[420520377,1776225040689,-2660.79885479,9.089e-05,2]
[420520378,1776225040720,-323.25552983,9.089e-05,2]
[420520381,1776225043327,-313.24953239,9.089e-05,2]
[420520382,1776225043407,-418.93857618,9.089e-05,2]
[420520383,1776225043446,-718.15423264,9.089e-05,2]
[420520392,1776225046520,-9280.19354889,9.089e-05,2]
[420520393,1776225046546,-213804.72867431,9.089e-05,2]
[420520403,1776225677008,10000.0,0.00027397,120]
[420520404,1776225685295,10000.0,0.00027397,120]
[420520405,1776225693284,10000.0,0.00027397,120]
[420520408,1776225707340,10000.0,0.00027397,120]
[420520409,1776225716113,10000.0,0.00027397,120]
[420520410,1776225733346,9799.0,0.00027397,120]
[420520445,1776226232353,-1096.46995365,5e-05,2]
[420520447,1776226232369,-198.93113713,5.654e-05,2]
[420520450,1776226232391,-251.83952875,6.235e-05,2]
[420520452,1776226232411,-234.73874182,7.654e-05,2]
[420520454,1776226232446,-419.556,8.81e-05,2]
[420520456,1776226232498,-500.0,8.863e-05,2]
[420520458,1776226232599,-500.0,8.863e-05,2]
[420520460,1776226232702,-245.23109024,8.887e-05,2]
[420520463,1776226238627,-2904.8866169,8.88e-05,2]
[420520464,1776226238661,-2016.74270193,8.88e-05,2]
[420520468,1776226238734,-32385.84669772,8.88e-05,2]
[420520469,1776226238749,-18218.42925953,8.88e-05,2]
[420520470,1776226238767,-904.50038045,8.88e-05,2]
[420520505,1776226243578,-31854.71960781,8.88e-05,2]
[420520745,1776226246462,-1232.21825907,8.88e-05,2]
[420520782,1776226269611,50000.0,0.00027396,120]
[420520783,1776226294442,30000.0,0.00027397,120]
[420520785,1776226351209,20000.0,0.00027397,120]
[420520786,1776226494750,60000.0,0.00027397,120]
[420520792,1776227342655,-5000.0,7.693e-05,10]
[420520794,1776227401463,-5000.0,7.694e-05,2]
[420520836,1776227432977,-193.79773955,7.771e-05,2]
[420520837,1776227432986,-168.1530789,7.85e-05,2]
[420520839,1776227433001,-500.0,8.663e-05,2]
[420520841,1776227433011,-500.0,8.663e-05,2]
[420520843,1776227433020,-466.65070416,8.663e-05,2]
[420520845,1776227433035,-33.34929584,8.663e-05,2]
[420520847,1776227433045,-4945.66226391,8.67e-05,2]
[420520850,1776227433068,-275.78311919,8.67e-05,2]
[420520852,1776227433081,-300.0,8.679e-05,2]
[420520854,1776227433091,-11.15769949,8.679e-05,2]
[420521008,1776227446926,-4729.29963353,7.694e-05,2]
[420521009,1776227446936,-1188.84230051,8.679e-05,2]
[420521010,1776227446946,-500.0,8.679e-05,2]
[420521011,1776227446961,-218.12355922,8.679e-05,2]
[420521012,1776227446971,-500.0,8.679e-05,2]
[420521013,1776227446980,-476.62622644,8.679e-05,2]
[420521014,1776227446995,-500.0,8.679e-05,2]
[420521015,1776227447006,-500.0,8.679e-05,2]
[420521016,1776227447016,-57373.01625523,8.68e-05,2]
[420521017,1776227447272,-942626.98374477,8.68e-05,2]
[420521018,1776227447282,-384.44987235,8.688e-05,2]
[420521019,1776227447292,-500.0,8.688e-05,2]
[420521020,1776227447303,-500.0,8.688e-05,2]
[420521021,1776227447314,-500.0,8.688e-05,2]
[420521022,1776227447323,-500.0,8.688e-05,2]
[420521023,1776227447333,-500.0,8.688e-05,2]
[420521024,1776227447342,-500.0,8.688e-05,2]
[420521025,1776227447359,-500.0,8.688e-05,2]
[420521026,1776227447369,-500.0,8.688e-05,2]
[420521027,1776227447378,-500.0,8.688e-05,2]
[420521028,1776227447387,-406.95830743,8.688e-05,2]
[420521029,1776227447410,-500.0,8.688e-05,2]
[420521030,1776227447420,-500.0,8.688e-05,2]
[420521031,1776227447429,-500.0,8.688e-05,2]
[420521032,1776227447454,-500.0,8.688e-05,2]
[420521033,1776227447465,-500.0,8.688e-05,2]
[420521034,1776227447474,-500.0,8.688e-05,2]
[420521036,1776227447499,-500.0,8.688e-05,2]
[420521037,1776227447509,-500.0,8.688e-05,2]
[420521038,1776227447519,-500.0,8.688e-05,2]
[420521039,1776227447547,-500.0,8.688e-05,2]
[420521040,1776227447558,-458.14542217,8.688e-05,2]
[420521041,1776227447582,-500.0,8.688e-05,2]
[420521042,1776227447597,-500.0,8.688e-05,2]
[420521043,1776227447607,-500.0,8.688e-05,2]
[420521044,1776227447620,-500.0,8.688e-05,2]
[420521045,1776227447637,-500.0,8.688e-05,2]
[420521046,1776227447649,-500.0,8.688e-05,2]
[420521047,1776227447659,-500.0,8.688e-05,2]
[420521048,1776227447677,-500.0,8.688e-05,2]
[420521049,1776227447690,-500.0,8.688e-05,2]
[420521050,1776227447700,-500.0,8.688e-05,2]
[420521051,1776227447712,-500.0,8.688e-05,2]
[420521052,1776227447733,-500.0,8.688e-05,2]
[420521053,1776227447746,-500.0,8.688e-05,2]
[420521054,1776227447758,-500.0,8.688e-05,2]
[420521055,1776227447776,-500.0,8.688e-05,2]
[420521056,1776227447786,-500.0,8.688e-05,2]
[420521057,1776227447800,-500.0,8.688e-05,2]
[420521058,1776227447811,-500.0,8.688e-05,2]
[420521059,1776227447828,-500.0,8.688e-05,2]
[420521060,1776227447841,-624.50001566,8.689e-05,2]
[420521061,1776227447851,-175483.68095054,8.689e-05,2]
[420521062,1776227447868,-1343239.48728961,8.689e-05,2]
[420521063,1776227447882,-7831.97998969,8.689e-05,2]
[420521067,1776227975211,154.41,0.00027397,120]
[420521068,1776227998729,-3900.0,7.507e-05,2]
[420521070,1776228064074,-1100.0,7.432e-05,2]
[420521071,1776228071442,-870.0,7.432e-05,2]
[420521072,1776228100551,-2876.0,7.432e-05,2]
[420521073,1776228131147,-1270.0,7.358e-05,2]
[420521074,1776228171513,-748.14682595,7.284e-05,2]
[420521075,1776228171581,-1304.47284425,7.358e-05,2]
[420521076,1776228171662,-154.0,7.432e-05,2]
[420521077,1776228171736,-44.3803298,7.507e-05,2]
[420521078,1776228230843,-5000.0,7.432e-05,2]
[420521079,1776228261288,-5000.0,7.432e-05,2]
[420521080,1776228276534,-5000.0,7.395e-05,2]
[420521081,1776228307970,-5000.0,7.395e-05,2]
[420521082,1776228326371,-5000.0,7.395e-05,2]
[420521083,1776228343152,-4408.48186402,7.395e-05,2]
[420521084,1776228343182,-205.5899378,7.469e-05,2]
[420521085,1776228343205,-30.7241165,7.507e-05,2]
[420521086,1776228343230,-355.20408168,7.651e-05,2]
[420521087,1776228355709,-5000.0,7.574e-05,2]
[420521088,1776228363866,174.65933697,7.651e-05,30]
[420521089,1776228364631,174.65933697,7.652e-05,30]
[420521090,1776228365249,174.65933697,8.055e-05,30]
[420521091,1776228366105,174.65933697,8.416e-05,30]
[420521092,1776228430541,-4585.0,7.574e-05,2]
[420521093,1776228454780,-1062.0,7.498e-05,2]
[420521094,1776228487800,-767.42205048,7.423e-05,2]
[420521095,1776228487881,-55.57794952,7.498e-05,2]
[420521098,1776228597841,-325.91325964,7.27e-05,2]
[420521099,1776228597865,-1302.34938551,7.27e-05,2]
[420521100,1776228597890,-219.20248844,7.346e-05,2]
[420521101,1776228597914,-3152.53486641,7.423e-05,2]
[420521104,1776228616145,-1847.46513359,7.423e-05,2]
[420521105,1776228616213,-3056.02854292,7.498e-05,2]
[420521106,1776228624819,96.50632349,7.548e-05,2]
[420521116,1776228631920,-318.49367651,7.548e-05,2]
[420521117,1776228631936,-65.66184765,7.651e-05,2]
[420521118,1776228631963,-234.33815235,7.651e-05,2]
[420521119,1776228631978,-1200.0,7.651e-05,2]
[420521120,1776228631994,-433.57896586,7.652e-05,2]
[420521121,1776228632004,-1732.58154759,7.652e-05,2]
[420521122,1776228632013,-136.39535885,7.804e-05,2]
[420521123,1776228632028,-163.60464115,7.804e-05,2]
[420521124,1776228632045,-300.0,7.804e-05,2]
[420521125,1776228632056,-300.0,7.804e-05,2]
[420521126,1776228632066,-300.0,7.804e-05,2]
[420521127,1776228632085,-300.0,7.804e-05,2]
[420521128,1776228632094,-300.0,7.804e-05,2]
[420521129,1776228632107,-300.0,7.804e-05,2]
[420521130,1776228632121,-300.0,7.804e-05,2]
[420521131,1776228632133,-300.0,7.804e-05,2]
[420521132,1776228632145,-300.0,7.804e-05,2]
[420521133,1776228632162,-300.0,7.804e-05,2]
[420521134,1776228632174,-300.0,7.804e-05,2]
[420521135,1776228632186,-300.0,7.804e-05,2]
[420521136,1776228632206,-300.0,7.804e-05,2]
[420521137,1776228632217,-300.0,7.804e-05,2]
[420521138,1776228632243,-420.0,8.417e-05,2]
[420521139,1776228632255,-1680.0,8.417e-05,2]
[420521140,1776228632270,-164.089913,8.429e-05,2]
[420521141,1776228632293,-1218.0169456,8.685e-05,2]
[420521142,1776228632306,-340.0,8.689e-05,2]
[420521143,1776228632324,-340.0,8.689e-05,2]
[420521144,1776228632338,-340.0,8.689e-05,2]
[420521145,1776228632357,-182.66198194,8.689e-05,2]
[420521146,1776228632369,-166.0,8.689e-05,2]
[420521147,1776228632383,-160.49314772,8.689e-05,2]
[420521148,1776228632397,-166.0,8.689e-05,2]
[420521149,1776228632411,-648.0,8.689e-05,2]
[420521150,1776228632426,-567.2481001,8.689e-05,2]
[420521151,1776228632444,-80.7518999,8.689e-05,2]
[420521152,1776228632466,-648.0,8.689e-05,2]
[420521153,1776228632485,-166.0,8.689e-05,2]
[420521154,1776228632510,-151.23227462,8.689e-05,2]
[420521155,1776228632529,-42.08084032,8.689e-05,2]
[420521156,1776228638064,-605.91915968,8.689e-05,2]
[420521157,1776228638074,-166.0,8.689e-05,2]
[420521158,1776228638086,-648.0,8.689e-05,2]
[420521159,1776228638100,-166.0,8.689e-05,2]
[420521160,1776228638113,-648.0,8.689e-05,2]
[420521161,1776228638126,-166.0,8.689e-05,2]
[420521162,1776228638137,-240.74682461,8.689e-05,2]
[420521163,1776228638147,-648.0,8.689e-05,2]
[420521164,1776228638159,-648.0,8.689e-05,2]
[420521165,1776228638170,-648.0,8.689e-05,2]
[420521166,1776228638179,-648.0,8.689e-05,2]
[420521167,1776228638189,-648.0,8.689e-05,2]
[420521168,1776228638200,-500.0,8.689e-05,2]
[420521169,1776228638212,-648.0,8.689e-05,2]
[420521170,1776228638221,-423.7371276,8.689e-05,2]
[420521172,1776228638297,-224.2628724,8.689e-05,2]
[420521174,1776228638310,-648.0,8.689e-05,2]
[420521175,1776228638320,-172.0,8.689e-05,2]
[420521176,1776228638335,-648.0,8.689e-05,2]
[420521177,1776228638346,-648.0,8.689e-05,2]
[420521178,1776228638359,-648.0,8.689e-05,2]
[420521180,1776228638372,-648.0,8.689e-05,2]
[420521181,1776228638395,-648.0,8.689e-05,2]
[420521182,1776228638405,-506.28294147,8.689e-05,2]
[420521183,1776228638419,-173.8711502,8.706e-05,2]
[420521184,1776228638430,-600.0,8.862e-05,2]
[420521185,1776228638443,-164.089913,9.021e-05,2]
[420521186,1776228638454,-956.8705005,9.081e-05,2]
[420521187,1776228638467,-500.0,9.087e-05,2]
[420521188,1776228638479,-500.0,9.087e-05,2]
[420521189,1776228638488,-500.0,9.087e-05,2]
[420521190,1776228638503,-502.70751272,9.087e-05,2]
[420521191,1776228638533,-566.28085451,9.087e-05,2]
[420521192,1776228638547,-500.0,9.087e-05,2]
[420521193,1776228638558,-500.0,9.087e-05,2]
[420521194,1776228638573,-500.0,9.087e-05,2]
[420521195,1776228638583,-500.0,9.087e-05,2]
[420521196,1776228638597,-500.0,9.087e-05,2]
[420521197,1776228638606,-500.0,9.087e-05,2]
[420521198,1776228638619,-500.0,9.087e-05,2]
[420521199,1776228638630,-500.0,9.087e-05,2]
[420521200,1776228638641,-500.0,9.087e-05,2]
[420521201,1776228638650,-500.0,9.087e-05,2]
[420521202,1776228638663,-500.0,9.087e-05,2]
[420521203,1776228638674,-500.0,9.087e-05,2]
[420521204,1776228638685,-500.0,9.087e-05,2]
[420521205,1776228638695,-500.0,9.087e-05,2]
[420521206,1776228638707,-500.0,9.087e-05,2]
[420521207,1776228638718,-500.0,9.087e-05,2]
[420521208,1776228638729,-500.0,9.087e-05,2]
[420521209,1776228638738,-500.0,9.087e-05,2]
[420521210,1776228638750,-500.0,9.087e-05,2]
[420521211,1776228638762,-252.78336829,9.087e-05,2]